bitfinex/quotes_SOLUSD_20250518
["timestamp","ask_amount","ask_price","bid_price","bid_amount"]
[1747611851441,5.83737084,171.31,171.25,20.14]
[1747611851656,20.43079796,171.31,171.25,84.24]
[1747611852686,32.70231147,171.31,171.25,84.24]
[1747611852892,5.83737084,171.31,171.25,84.24]
[1747611854214,18.10888435,171.31,171.25,84.24]
[1747611855018,32.70231147,171.31,171.25,84.24]
[1747611856604,20.43079796,171.31,171.25,84.24]
[1747611857513,5.83668942,171.33,171.26,19.81721557]
[1747611858222,5.83600817,171.35,171.28,18.64964886]
[1747611858523,5.83600817,171.35,171.28,82.74964886]
[1747611859924,5.83600817,171.35,171.28,88.58797979]
[1747611860231,5.83600817,171.35,171.28,89.7552901]
[1747611860398,5.83600817,171.35,171.28,25.6552901]
[1747611860793,5.83498657,171.38,171.28,25.6552901]
[1747611861525,5.83498657,171.38,171.3,20.28494886]
[1747611861734,5.83430571,171.4,171.32,18.64964886]
[1747611862026,5.83430571,171.4,171.34,18.64964886]
[1747611863240,47.77693938,171.42,171.35,5.83600817]
[1747611863543,5.83226408,171.46,171.38,18.64964886]
[1747611863703,5.83226408,171.46,171.4,18.64964886]
[1747611864742,32.6844378,171.46,171.39,40.26]
[1747611864903,20.41292429,171.46,171.39,40.26]
[1747611866095,14.58066021,171.46,171.39,40.26]
[1747611867325,5.83158385,171.48,171.4,18.64964886]
[1747611867638,18.10309736,171.48,171.4,18.64964886]
[1747611868129,32.682057,171.48,171.4,18.64964886]
[1747611868430,12.27151351,171.47,171.4,18.64964886]
[1747611869761,5.83226408,171.46,171.4,18.64964886]
[1747611870644,5.83226408,171.46,171.4,82.74964886]
[1747611871160,5.83226408,171.46,171.4,83.91615024]
[1747611871339,5.83090379,171.5,171.4,115.75028941]
[1747611871919,5.83056381,171.51,171.4,115.75028941]
[1747611872123,5.83056381,171.51,171.44,20.22394886]
[1747611872322,5.83056381,171.51,171.45,40.22]
[1747611873351,32.67610745,171.53,171.45,40.22]
[1747611874934,12.27151351,171.52,171.45,40.22]
[1747611875133,32.67610745,171.53,171.45,40.22]
[1747611875332,5.82988398,171.53,171.46,19.81585134]
[1747611876330,5.82920431,171.55,171.46,109.91585134]
[1747611876877,20.39758088,171.59,171.46,109.91585134]
[1747611877173,58.66909439,171.59,171.46,109.91585134]
[1747611877339,58.66909439,171.59,171.47,5.83192395]
[1747611877539,58.66909439,171.59,171.49,18.64964886]
[1747611878752,58.66909439,171.59,171.5,1.16578283]
[1747611878953,58.66909439,171.59,171.51,40.2]
[1747611879171,20.39758088,171.59,171.51,104.3]
[1747611879378,5.82784544,171.59,171.52,2.81568325]
[1747611879644,5.82737337,171.61,171.52,66.91568325]
[1747611880077,5.82691241,171.62,171.52,66.91568325]
[1747611880281,5.82674099,171.63,171.53,18.64964886]
[1747611880508,5.82614913,171.64,171.54,6.99486687]
[1747611880954,18.09766264,171.64,171.54,6.99486687]
[1747611882301,5.82614913,171.64,171.55,18.64964886]
[1747611882504,18.09664311,171.67,171.57,18.64964886]
[1747611882812,18.09664311,171.67,171.58,41.36517343]
[1747611882970,5.8251296,171.67,171.59,1.5309]
[1747611883314,5.82377263,171.71,171.61,18.64964886]
[1747611883617,18.09528614,171.71,171.62,1.16499056]
[1747611883775,12.27151351,171.7,171.62,1.16499056]
[1747611885723,5.82445104,171.69,171.62,1.16499056]
[1747611887017,20.38439137,171.7,171.62,1.16499056]
[1747611887396,20.38439137,171.7,171.62,4.01396119]
[1747611887602,39.9201062,171.7,171.62,4.01396119]
[1747611887812,39.9201062,171.7,171.62,1.16499056]
[1747611888027,19.53571483,171.67,171.61,64.1]
[1747611888189,19.53571483,171.66,171.59,2.69587103]
[1747611888393,46.38439137,171.7,171.6,20.08]
[1747611888702,19.53571483,171.68,171.6,20.08]
[1747611889217,39.92366845,171.67,171.6,20.08]
[1747611890012,20.38795362,171.67,171.6,20.08]
[1747611890216,5.8251296,171.67,171.61,1.16503817]
[1747611891391,5.8247903,171.68,171.61,1.16503817]
[1747611891698,5.8247903,171.68,171.61,65.26503817]
[1747611896560,5.8247903,171.68,171.62,18.64964886]
[1747611896723,5.8247903,171.68,171.63,1.16485157]
[1747611897148,20.38483545,171.7,171.63,1.16485157]
[1747611897348,5.82411182,171.7,171.64,18.64964886]
[1747611897543,5.8224163,171.75,171.66,18.64964886]
[1747611897750,5.8224163,171.75,171.68,18.64964886]
[1747611897932,5.8224163,171.75,171.69,1.16446419]
[1747611898543,19.53571483,171.72,171.66,20.08]
[1747611898850,19.53571483,171.71,171.66,20.08]
[1747611899357,5.82411182,171.7,171.66,20.08]
[1747611899856,20.38439137,171.7,171.66,20.08]
[1747611900658,39.9201062,171.7,171.66,20.08]
[1747611901259,5.8251296,171.67,171.64,20.04]
[1747611902455,5.82411182,171.7,171.64,85.30501869]
[1747611903255,5.82275532,171.74,171.65,18.64964886]
[1747611903586,20.37964363,171.74,171.65,82.74964886]
[1747611903757,20.37964363,171.74,171.66,1.16467776]
[1747611904447,5.82275532,171.74,171.66,65.26467776]
[1747611905235,5.82207731,171.76,171.66,65.26467776]
[1747611905430,25.35779214,171.76,171.66,65.26467776]
[1747611905635,34.09260314,171.74,171.66,65.26467776]
[1747611905836,19.53571483,171.7,171.65,20.04]
[1747611906045,26.0,171.69,171.61,1.6546]
[1747611906262,19.53571483,171.67,171.62,20.04]
[1747611906464,19.53571483,171.68,171.62,20.04]
[1747611907384,19.53571483,171.65,171.6,20.04]
[1747611907565,19.53571483,171.64,171.6,20.04]
[1747611907876,19.53571483,171.65,171.6,20.04]
[1747611908077,39.92366845,171.67,171.6,20.04]
[1747611908272,5.8251296,171.67,171.6,20.04]
[1747611909489,20.87186243,171.73,171.62,1.5389]
[1747611909864,20.38201723,171.72,171.62,1.5389]
[1747611910369,20.38201723,171.72,171.63,18.64964886]
[1747611910563,20.38201723,171.72,171.62,1.5389]
[1747611910773,20.38201723,171.72,171.63,40.08]
[1747611912789,20.38201723,171.72,171.63,104.18]
[1747611913263,39.91773206,171.72,171.63,104.18]
[1747611913459,20.38201723,171.72,171.63,104.18]
[1747611914375,20.38201723,171.72,171.63,105.34509424]
[1747611914574,20.38201723,171.72,171.63,111.1715612]
[1747611914783,5.82343349,171.72,171.64,18.64964886]
[1747611914986,5.82343349,171.72,171.65,1.16467674]
[1747611915393,5.82173837,171.77,171.68,18.64964886]
[1747611915572,5.82173837,171.77,171.69,41.24445086]
[1747611916486,65.91179912,171.77,171.69,40.08]
[1747611916794,19.53571483,171.76,171.69,40.08]
[1747611917172,26.0,171.72,171.69,40.08]
[1747611917374,31.82411182,171.7,171.69,40.08]
[1747611917591,31.82411182,171.7,171.69,20.04]
[1747611918489,14.55570793,171.76,171.69,20.04]
[1747611918875,26.0,171.74,171.69,20.04]
[1747611919392,26.0,171.74,171.68,20.04]
[1747611919589,5.82309439,171.73,171.68,20.04]
[1747611921408,5.82173837,171.77,171.68,27.02919582]
[1747611921911,5.82173837,171.77,171.68,20.04]
[1747611921912,25.3574532,171.77,171.68,20.04]
[1747611922117,26.0,171.73,171.68,84.14]
[1747611922410,26.0,171.73,171.68,20.04]
[1747611922411,26.0,171.71,171.68,20.04]
[1747611923402,26.0,171.66,171.61,20.04]
[1747611923720,5.82580833,171.65,171.61,20.04]
[1747611923930,20.39032915,171.65,171.61,20.04]
[1747611924292,39.92604398,171.65,171.61,20.04]
[1747611925890,20.39032915,171.65,171.61,20.04]
[1747611926311,26.0,171.62,171.61,20.04]
[1747611926630,26.0,171.6,171.56,40.06]
[1747611927110,26.0,171.59,171.56,40.06]
[1747611927697,26.0,171.6,171.56,40.06]
[1747611927892,5.82682671,171.62,171.56,40.06]
[1747611928902,5.82682671,171.62,171.54,2.80921675]
[1747611929128,5.82580833,171.65,171.56,18.64964886]
[1747611929420,5.82580833,171.65,171.57,1.16526888]
[1747611930114,14.56237236,171.68,171.57,6.99346021]
[1747611930419,14.56237236,171.68,171.58,18.64964886]
[1747611930629,14.56237236,171.68,171.59,1.16512566]
[1747611930814,5.82445104,171.69,171.6,18.64964886]
[1747611930998,4.17545236,171.75,171.62,18.64964886]
[1747611931198,20.38000468,171.74,171.64,18.64964886]
[1747611931409,20.38000468,171.74,171.65,1.16472931]
[1747611932226,20.38000468,171.74,171.66,40.04]
[1747611932424,39.91571951,171.74,171.66,64.1]
[1747611932709,19.53571483,171.73,171.67,20.02]
[1747611933323,19.53571483,171.71,171.66,64.1]
[1747611933529,45.53571483,171.69,171.63,20.02]
[1747611933737,26.0,171.69,171.63,20.02]
[1747611933909,26.0,171.71,171.63,20.02]
[1747611934107,5.82411182,171.7,171.63,20.02]
[1747611934623,20.38439137,171.7,171.63,20.02]
[1747611934831,39.9201062,171.7,171.63,20.02]
[1747611935801,20.38439137,171.7,171.61,65.7457]
[1747611936028,39.9201062,171.7,171.62,20.02]
[1747611936402,20.38439137,171.7,171.62,20.02]
[1747611936624,20.38439137,171.7,171.62,84.12]
[1747611937243,20.38439137,171.7,171.62,89.94678022]
[1747611937820,20.38439137,171.7,171.62,84.12]
[1747611938047,5.82411182,171.7,171.63,1.1649996]
[1747611938227,5.82343349,171.72,171.63,6.99117995]
[1747611938640,20.38201723,171.72,171.62,84.12]
[1747611938841,19.53571483,171.71,171.63,40.02]
[1747611939046,19.53571483,171.71,171.62,64.1]
[1747611939235,19.53571483,171.7,171.63,40.02]
[1747611939764,19.53571483,171.67,171.58,64.1]
[1747611939928,19.53571483,171.67,171.6,20.0]
[1747611940357,20.38914132,171.66,171.6,20.0]
[1747611940562,5.82546895,171.66,171.6,20.0]
[1747611940852,5.82546895,171.66,171.6,40.02]
[1747611941049,39.92485615,171.66,171.6,40.02]
[1747611941356,19.53571483,171.65,171.6,20.0]
[1747611941742,19.53571483,171.63,171.58,20.0]
[1747611942049,19.53571483,171.61,171.56,20.0]
[1747611942441,5.82750582,171.6,171.56,20.0]
[1747611942629,5.82750582,171.6,171.49,1.6241]
[1747611942831,39.93198521,171.6,171.5,40.0]
[1747611943028,39.93198521,171.6,171.5,104.1]
[1747611943836,19.53571483,171.59,171.51,20.02]
[1747611944044,19.53571483,171.58,171.52,20.0]
[1747611944426,5.8281851,171.58,171.52,20.0]
[1747611944760,20.39864785,171.58,171.52,20.0]
[1747611945256,5.8281851,171.58,171.52,20.0]
[1747611946563,5.82784544,171.59,171.52,20.0]
[1747611946860,14.57046275,171.58,171.52,20.0]
[1747611947631,14.57046275,171.58,171.51,20.02]
[1747611947955,34.10617758,171.58,171.51,40.02]
[1747611948355,14.57046275,171.58,171.51,40.02]
[1747611948857,14.57046275,171.58,171.51,104.12]
[1747611949752,34.10617758,171.58,171.51,104.12]
[1747611950153,19.53571483,171.56,171.47,282.1]
[1747611950356,19.53571483,171.55,171.48,20.02]
[1747611950660,5.82954412,171.54,171.48,40.02]
[1747611951136,39.93911927,171.54,171.48,40.02]
[1747611951461,19.53571483,171.53,171.47,218.0]
[1747611951634,19.53571483,171.52,171.45,1.5076]
[1747611951971,19.53571483,171.52,171.45,20.0]
[1747611952178,19.53571483,171.51,171.45,20.0]
[1747611952348,19.53571483,171.5,171.44,48.52372787]
[1747611952678,5.8312438,171.49,171.44,40.02]
[1747611952847,19.53571483,171.48,171.4,1.5076]
[1747611953172,19.53571483,171.48,171.42,20.0]
[1747611953489,39.94506814,171.49,171.42,20.0]
[1747611953656,19.53571483,171.48,171.42,20.0]
[1747611954862,34.11382434,171.49,171.42,20.0]
[1747611955691,19.53571483,171.48,171.42,20.0]
[1747611956676,39.94744865,171.47,171.4,1.5076]
[1747611956877,19.53571483,171.45,171.39,84.12]
[1747611957096,19.53571483,171.44,171.39,20.02]
[1747611957383,19.53571483,171.43,171.39,40.02]
[1747611959164,19.53571483,171.43,171.36,258.16]
[1747611959482,45.53571483,171.44,171.36,258.16]
[1747611960683,5.83328472,171.43,171.36,258.16]
[1747611960885,5.83328472,171.43,171.37,1.16693158]
[1747611961263,5.83090379,171.5,171.38,26.69384886]
[1747611961471,5.83090379,171.5,171.4,18.64964886]
[1747611961668,5.83090379,171.5,171.41,1.16636861]
[1747611961887,5.83090379,171.5,171.42,40.02]
[1747611962099,5.83090379,171.5,171.41,1.16636861]
[1747611962393,19.53571483,171.49,171.39,1.1663351]
[1747611962598,5.83192395,171.47,171.4,40.02]
[1747611962795,19.53571483,171.46,171.4,40.02]
[1747611963569,20.41173382,171.47,171.4,40.02]
[1747611963767,5.83192395,171.47,171.4,40.02]
[1747611963980,5.83192395,171.47,171.4,41.18650317]
[1747611964577,20.40853433,171.5,171.4,41.18650317]
[1747611965487,20.40853433,171.5,171.4,47.02058686]
[1747611965670,5.83090379,171.5,171.41,18.64964886]
[1747611965877,5.83090379,171.5,171.42,1.16627533]
[1747611966293,20.40816326,171.5,171.42,1.16627533]
[1747611966469,20.40816326,171.5,171.41,18.64964886]
[1747611966795,14.57725947,171.5,171.4,41.18636222]
[1747611967700,5.83056381,171.51,171.41,18.64964886]
[1747611967876,5.83056381,171.51,171.43,18.64964886]
[1747611968079,5.83056381,171.51,171.44,1.16610819]
[1747611968273,5.83056381,171.51,171.44,65.26610819]
[1747611968683,20.40697334,171.51,171.44,65.26610819]
[1747611968893,20.40697334,171.51,171.44,64.1]
[1747611969101,5.83056381,171.51,171.45,1.16630188]
[1747611969292,5.83056381,171.51,171.46,41.5021]
[1747611969488,5.82988398,171.53,171.47,1.16599837]
[1747611969871,5.82988398,171.53,171.46,111.7508]
[1747611970499,20.40459394,171.53,171.46,111.7508]
[1747611971105,5.82920431,171.55,171.47,1.16609278]
[1747611971400,5.82920431,171.55,171.48,18.64964886]
[1747611971589,5.82920431,171.55,171.49,1.16580902]
[1747611971770,5.8281851,171.58,171.49,1.16580902]
[1747611971972,5.8281851,171.58,171.5,18.64964886]
[1747611972195,5.8281851,171.58,171.51,1.16576077]
[1747611972396,5.8281851,171.58,171.52,40.0]
[1747611972585,5.8281851,171.58,171.53,1.16568783]
[1747611973182,7.7826,171.64,171.53,1.16568783]
[1747611973183,39.93079669,171.61,171.53,1.16568783]
[1747611973395,39.93079669,171.61,171.52,40.0]
[1747611973892,5.82716624,171.61,171.52,40.0]
[1747611974101,5.82716624,171.61,171.54,1.5575]
[1747611974607,5.82682446,171.63,171.55,26.04313787]
[1747611974788,5.82682446,171.63,171.55,93.07167227]
[1747611975201,39.92416346,171.67,171.56,5.82886453]
[1747611975386,39.92416346,171.67,171.57,1.16526083]
[1747611975589,20.38844863,171.67,171.58,40.0]
[1747611976308,20.38320422,171.71,171.6,18.64964886]
[1747611976519,5.82377263,171.71,171.62,18.64964886]
[1747611976690,5.82377263,171.71,171.63,1.1648318]
[1747611976890,5.82377263,171.71,171.64,39.98]
[1747611977627,5.82342876,171.73,171.65,1.16479048]
[1747611977783,5.82342876,171.73,171.65,7.69689048]
[1747611978285,25.35813113,171.75,171.65,7.69689048]
[1747611978605,5.8224163,171.75,171.65,77.62260765]
[1747611979000,19.53571483,171.74,171.65,71.79689048]
[1747611979579,19.53571483,171.73,171.65,70.6321]
[1747611979884,19.53571483,171.71,171.66,19.98]
[1747611980409,5.82411182,171.7,171.66,19.98]
[1747611982415,19.53571483,171.7,171.66,19.98]
[1747611982705,39.91970005,171.71,171.66,19.98]
[1747611983103,5.82377263,171.71,171.66,19.98]
[1747611983998,5.82340936,171.73,171.67,1.16476874]
[1747611984406,5.8224163,171.75,171.67,65.26476874]
[1747611984597,5.8224163,171.75,171.67,71.08985054]
[1747611985191,5.82204082,171.77,171.68,18.64964886]
[1747611985402,10.59094835,171.78,171.71,6.073]
[1747611985594,4.76954311,171.78,171.72,41.10424142]
[1747611985799,4.76954311,171.78,171.73,18.64964886]
[1747611986000,4.76954311,171.78,171.74,1.16401751]
[1747611987713,4.76954311,171.78,171.75,18.64964886]
[1747611987896,4.76954311,171.78,171.76,1.16378409]
[1747611988708,4.76954311,171.78,171.76,6.98582287]
[1747611989204,4.76954311,171.78,171.76,1.16378409]
[1747611989594,19.53571483,171.92,171.78,1.6532]
[1747611989910,26.0,171.93,171.8,18.64964886]
[1747611990086,19.53571483,171.92,171.81,1.16356672]
[1747611990288,14.54292035,171.91,171.82,18.64964886]
[1747611990583,19.53571483,171.94,171.87,10.0]
[1747611990804,26.0,171.94,171.88,39.94]
[1747611991004,45.53571483,171.94,171.88,39.94]
[1747611991341,134.7,172.02,171.89,10.0]
[1747611991490,19.53571483,171.96,171.89,10.0]
[1747611991689,19.53571483,171.95,171.89,81.5]
[1747611991893,19.53571483,171.92,171.89,81.5]
[1747611992196,19.53571483,171.94,171.9,19.94]
[1747611992706,20.3559381,171.94,171.9,19.94]
[1747611993006,19.53571483,171.93,171.9,19.94]
[1747611993239,19.53571483,171.91,171.85,81.5]
[1747611993385,26.0,171.92,171.88,19.94]
[1747611993726,19.53571483,171.89,171.88,19.94]
[1747611994514,25.35338892,171.89,171.88,19.94]
[1747611995303,5.81767409,171.89,171.88,19.94]
[1747611995498,25.35338892,171.89,171.88,19.94]
[1747611996086,5.81767409,171.89,171.88,19.94]
[1747611996706,5.81733566,171.9,171.88,29.94]
[1747611996898,5.81632059,171.93,171.89,29.94]
[1747611997115,25.35203542,171.93,171.89,29.94]
[1747611997312,19.53571483,171.92,171.89,19.94]
[1747611997509,19.53571483,171.91,171.89,19.94]
[1747611997730,28.79051295,171.91,171.89,19.94]
[1747611998033,28.79051295,171.92,171.89,19.94]
[1747611998410,49.14763502,171.93,171.89,19.94]
[1747611998628,5.81632059,171.93,171.89,29.94]
[1747612000322,5.81564408,171.95,171.93,10.0]
[1747612000522,5.81564408,171.95,171.94,19.92]
[1747612000753,28.79051295,171.97,171.94,19.92]
[1747612002716,5.81530073,171.97,171.94,19.92]
[1747612002911,5.81361548,172.01,171.95,29.92]
[1747612003110,5.81361548,172.01,171.97,10.0]
[1747612004323,28.79051295,172.03,171.97,10.0]
[1747612004529,20.33346887,172.13,171.99,18.64964886]
[1747612004731,5.81023763,172.11,172.05,10.0]
[1747612004925,5.81023763,172.11,172.06,49.84]
[1747612005243,5.80888759,172.15,172.07,29.92]
[1747612005424,5.80888759,172.15,172.09,10.0]
[1747612005750,5.80888759,172.15,172.07,239.2145]
[1747612005751,5.80888759,172.15,172.11,10.0]
[1747612005921,5.80850935,172.17,172.12,19.92]
[1747612006122,5.80850935,172.17,172.13,19.92]
[1747612007345,5.80850935,172.17,172.13,29.92]
[1747612007651,5.80850935,172.17,172.13,19.92]
[1747612007957,34.59670234,172.23,172.17,10.0]
[1747612008135,5.80618939,172.23,172.18,19.92]
[1747612008331,5.80618939,172.23,172.19,29.92]
[1747612008738,5.80618939,172.23,172.19,19.92]
[1747612008950,28.79051295,172.22,172.19,19.92]
[1747612009149,28.79051295,172.22,172.13,18.64964886]
[1747612009150,20.32166288,172.23,172.2,19.9]
[1747612009533,5.80618939,172.23,172.2,29.9]
[1747612009737,5.80618939,172.23,172.2,19.9]
[1747612010633,5.80585229,172.24,172.2,19.9]
[1747612011061,5.80585229,172.24,172.2,29.9]
[1747612011362,34.59636524,172.24,172.2,19.9]
[1747612011852,34.59636524,172.24,172.21,19.9]
[1747612012282,28.79051295,172.22,172.21,19.9]
[1747612012650,34.59703948,172.22,172.21,19.9]
[1747612014479,5.80652653,172.22,172.21,19.9]
[1747612014653,20.31992832,172.25,172.21,19.9]
[1747612014855,49.11044127,172.25,172.21,19.9]
[1747612015183,5.80551523,172.25,172.21,19.9]
[1747612015362,49.10981627,172.25,172.21,19.9]
[1747612015675,4.76954311,172.26,172.25,10.0]
[1747612015981,4.76954311,172.26,172.25,29.88]
[1747612016652,4.76954311,172.26,172.25,48.52964886]
[1747612016847,4.76954311,172.26,172.25,29.88]
[1747612017575,4.76954311,172.26,172.25,48.52964886]
[1747612017879,4.76954311,172.26,172.25,29.88]
[1747612018655,4.76954311,172.26,172.25,49.78]
[1747612019351,10.57472132,172.26,172.25,49.78]
[1747612019602,28.99054908,172.47,172.34,10.0]
[1747612019773,34.78865889,172.47,172.36,10.0]
[1747612019971,28.79051295,172.43,172.37,10.0]
[1747612020469,28.79051295,172.46,172.39,10.0]
[1747612020795,28.79051295,172.41,172.35,227.4]
[1747612021088,28.79051295,172.42,172.36,39.78]
[1747612021391,28.79051295,172.37,172.36,19.9]
[1747612021966,28.79051295,172.37,172.35,217.4]
[1747612022198,28.79051295,172.36,172.33,19.86]
[1747612022402,28.79051295,172.34,172.3,19.86]
[1747612022581,28.79051295,172.31,172.28,19.86]
[1747612022780,32.3928,172.39,172.3,10.0]
[1747612022975,20.30751377,172.35,172.3,10.0]
[1747612023184,20.30751377,172.35,172.31,10.0]
[1747612023383,20.30751377,172.35,172.3,10.0]
[1747612023903,20.30751377,172.35,172.31,10.0]
[1747612024072,20.30751377,172.35,172.3,10.0]
[1747612024271,20.30751377,172.35,172.28,19.86]
[1747612024272,28.79051295,172.33,172.28,19.86]
[1747612024479,28.79051295,172.31,172.28,19.86]
[1747612025007,28.79051295,172.33,172.28,19.86]
[1747612025183,49.09920506,172.34,172.28,29.86]
[1747612025369,28.79051295,172.33,172.28,29.86]
[1747612025681,20.30869211,172.34,172.24,217.32]
[1747612025682,28.79051295,172.29,172.24,217.32]
[1747612025888,28.79051295,172.25,172.24,19.86]
[1747612026197,54.79051295,172.25,172.18,19.86]
[1747612026391,28.79051295,172.21,172.18,19.86]
[1747612027140,5.80686371,172.21,172.18,19.86]
[1747612027292,5.80686371,172.21,172.19,10.0]
[1747612027635,5.80686371,172.21,172.18,19.86]
[1747612027998,28.79051295,172.19,172.18,19.86]
[1747612028717,83.5810259,172.19,172.11,19.86]
[1747612028901,28.79051295,172.12,172.11,19.86]
[1747612029099,5.80990006,172.12,172.11,19.86]
[1747612030102,34.60041301,172.12,172.11,19.86]
[1747612031110,49.12516318,172.12,172.06,19.86]
[1747612031329,28.79051295,172.07,172.06,19.86]
[1747612033032,5.81057524,172.1,172.06,19.86]
[1747612033228,49.1275263,172.1,172.06,19.86]
[1747612033405,28.79051295,172.08,172.06,19.86]
[1747612033602,28.79051295,172.07,172.06,19.86]
[1747612033806,28.79051295,172.07,172.02,237.16]
[1747612033998,28.79051295,172.03,171.96,10.0]
[1747612034203,28.79051295,172.02,171.97,29.86]
[1747612034415,28.79051295,172.02,171.98,10.0]
[1747612034620,28.79051295,172.04,171.99,10.0]
[1747612034927,28.79051295,172.04,171.98,10.0]
[1747612035225,34.60379047,172.02,171.98,10.0]
[1747612035522,5.81327752,172.02,171.98,10.0]
[1747612036225,5.81192607,172.06,172.01,10.0]
[1747612036409,34.60243902,172.06,172.0,10.0]
[1747612036927,28.79051295,172.04,171.98,10.0]
[1747612037114,5.81327752,172.02,171.97,49.74]
[1747612037495,5.81327752,172.02,171.98,10.0]
[1747612037696,5.81327752,172.02,171.99,10.0]
[1747612037927,5.81327752,172.02,171.98,10.0]
[1747612038730,5.81327752,172.02,171.97,49.74]
[1747612039227,5.8129396,172.03,171.97,49.74]
[1747612039929,28.79051295,171.98,171.93,19.88]
[1747612040108,28.79051295,171.94,171.93,19.88]
[1747612041729,46.35120362,171.98,171.93,19.88]
[1747612041935,28.79051295,171.94,171.93,19.88]
[1747612042345,5.8146296,171.98,171.94,10.0]
[1747612042831,34.60514255,171.98,171.93,29.88]
[1747612043239,20.35051445,171.99,171.93,29.88]
[1747612043432,28.79051295,171.98,171.93,29.88]
[1747612045347,5.81496772,171.97,171.94,10.0]
[1747612045654,34.60412843,172.01,171.96,10.0]
[1747612045880,28.79051295,171.99,171.93,29.88]
[1747612046024,28.79051295,171.98,171.94,10.0]
[1747612046223,28.79051295,172.0,171.95,10.0]
[1747612046549,20.34765419,172.01,171.97,10.0]
[1747612046733,5.81361548,172.01,172.0,10.0]
[1747612046920,34.60412843,172.01,171.96,10.0]
[1747612047122,34.60412843,172.01,171.97,10.0]
[1747612047329,5.81361548,172.01,171.99,10.0]
[1747612047527,5.81361548,172.01,171.99,29.88]
[1747612047739,5.81361548,172.01,171.99,19.88]
[1747612048354,14.53017571,172.06,172.02,10.0]
[1747612048525,5.81226387,172.05,172.02,10.0]
[1747612048928,5.81226387,172.05,172.03,10.0]
[1747612049345,5.8115883,172.07,172.03,10.0]
[1747612049523,34.60210125,172.07,172.03,10.0]
[1747612049932,49.13107201,172.07,172.03,10.0]
[1747612050252,28.79051295,172.04,171.99,29.88]
[1747612050756,28.79051295,172.01,171.96,10.0]
[1747612050937,28.79051295,171.99,171.97,19.88]
[1747612051344,5.8146296,171.98,171.97,19.88]
[1747612051866,34.60514255,171.98,171.95,227.62]
[1747612052065,5.8146296,171.98,171.95,237.5]
[1747612052251,28.79051295,171.96,171.95,237.5]
[1747612052846,28.79051295,171.97,171.95,237.5]
[1747612053046,34.60514255,171.98,171.95,237.5]
[1747612053258,5.8146296,171.98,171.95,247.5]
[1747612053461,28.79051295,172.01,171.98,10.0]
[1747612053641,34.60277682,172.05,172.01,10.0]
[1747612053847,5.81226387,172.05,172.03,10.0]
[1747612054263,5.81226387,172.05,172.04,10.0]
[1747612054666,5.81226387,172.05,172.02,10.0]
[1747612054967,28.79051295,172.03,172.01,19.88]
[1747612055470,5.8115883,172.07,172.02,10.0]
[1747612055654,28.79051295,172.03,172.01,19.88]
[1747612056146,28.79051295,172.04,172.01,19.88]
[1747612056349,28.79051295,172.04,172.01,29.88]
[1747612056549,28.79051295,172.06,172.01,29.88]
[1747612056768,28.79051295,172.05,172.01,29.88]
[1747612056938,28.79051295,172.04,172.01,29.88]
[1747612057153,20.34055906,172.07,172.02,10.0]
[1747612057552,5.81226387,172.05,172.02,10.0]
[1747612057865,5.81226387,172.05,172.03,10.0]
[1747612058186,5.81091289,172.09,172.03,10.0]
[1747612058361,5.81091289,172.09,172.05,10.0]
[1747612058561,5.81091289,172.09,172.06,10.0]
[1747612058764,5.81091289,172.09,172.07,29.88]
[1747612059852,5.81091289,172.09,172.07,19.88]
[1747612060076,34.60142584,172.09,172.07,19.88]
[1747612060267,28.79051295,172.08,172.07,19.88]
[1747612060910,5.81091289,172.09,172.07,19.88]
[1747612061257,34.60142584,172.09,172.07,19.88]
[1747612061464,5.81091289,172.09,172.07,19.88]
[1747612061677,5.81091289,172.09,172.07,29.88]
[1747612062685,34.60142584,172.09,172.07,19.88]
[1747612062884,28.79051295,172.08,172.07,19.88]
[1747612064293,34.60176353,172.08,172.07,19.88]
[1747612066906,49.12988998,172.08,172.04,10.0]
[1747612067108,28.79051295,172.06,172.03,10.0]